Workbook

Sheet Sheet1
A1: 提单ID | B1: 柜号 | C1: 承运人, | D1: `添加时间`, | E1: `目的港`, | F1: `运输方式`, | G1: 国家, | H1: `体积cm3`, | I1: `货币类型`, | J1: `货币值`, | K1: `项目名称` | L1: rmb值 | M1: 单价 | N1: 单价CNY
A2: 96000198 | B2: 731-94965312 | C2: MF | D2: 2022-03-16T09:22:40 | E2: YVR | F2: 空运 | H2: 10662586 | I2: CNY | J2: 78689.5 | K2: 空运费 | L2: 78689.5 | M2: =SUMIFS(L:L,A:A,A2) -> 82862.75 | N2: =M2/H2 -> 0.007771355842
A3: 96000198 | B3: 731-94965312 | C3: MF | D3: 2022-03-16T09:22:40 | E3: YVR | F3: 空运 | H3: 10662586 | I3: CNY | J3: 3829.25 | K3: 清关费 | L3: 3829.25 | M3: =SUMIFS(L:L,A:A,A3) -> 82862.75 | N3: =M3/H3 -> 0.007771355842
A4: 96000198 | B4: 731-94965312 | C4: MF | D4: 2022-03-16T09:22:40 | E4: YVR | F4: 空运 | H4: 10662586 | I4: CNY | J4: 344 | K4: 交舱费 | L4: 344 | M4: 82862.75 | N4: 0.007771355842
A5: 96000264 | B5: CXDU1676285 | C5: ONE | D5: 2022-04-01T13:43:33 | E5: LONG BEACH | F5: 海运 | G5: United States | H5: 68714748 | I5: CNY | J5: 64872.28 | K5: 空运费 | L5: 64872.28 | M5: 82692.39 | N5: 0.001203415459
A6: 96000264 | B6: CXDU1676285 | C6: ONE | D6: 2022-04-01T13:43:33 | E6: LONG BEACH | F6: 海运 | G6: United States | H6: 68714748 | I6: CNY | J6: 15147.44 | K6: 清关费 | L6: 15147.44 | M6: 82692.39 | N6: 0.001203415459
A7: 96000264 | B7: CXDU1676285 | C7: ONE | D7: 2022-04-01T13:43:33 | E7: LONG BEACH | F7: 海运 | G7: United States | H7: 68714748 | I7: CNY | J7: 2672.67 | K7: 税费 | L7: 2672.67 | M7: 82692.39 | N7: 0.001203415459
A8: 96000271 | B8: TLLU5660549 | C8: ONE | D8: 2022-04-02T16:57:42 | E8: LONG BEACH | F8: 海运 | G8: United States | H8: 69382345 | I8: CNY | J8: 64877.64 | K8: 空运费 | L8: 64877.64 | M8: 83350.08 | N8: 0.001201315407
A9: 96000271 | B9: TLLU5660549 | C9: ONE | D9: 2022-04-02T16:57:42 | E9: LONG BEACH | F9: 海运 | G9: United States | H9: 69382345 | I9: CNY | J9: 3032.75 | K9: 税费 | L9: 3032.75 | M9: 83350.08 | N9: 0.001201315407
A10: 96000271 | B10: TLLU5660549 | C10: ONE | D10: 2022-04-02T16:57:42 | E10: LONG BEACH | F10: 海运 | G10: United States | H10: 69382345 | I10: CNY | J10: 15439.69 | K10: 清关费 | L10: 15439.69 | M10: 83350.08 | N10: 0.001201315407
A11: 96000272 | B11: MATU2769828 | C11: MATSON | D11: 2022-04-03T09:19:20 | E11: LONG BEACH | F11: 海运 | G11: United States | H11: 63203446 | I11: CNY | J11: 5100 | K11: 其他费用 | L11: 5100 | M11: 5100 | N11: 8.069180279e-05
A12: 96000293 | B12: MATU2636487 | C12: MATSON | D12: 2022-04-09T17:38:36 | E12: LONG BEACH | F12: 海运 | G12: United States | H12: 64928638 | I12: CNY | J12: 131113.36 | K12: 空运费 | L12: 131113.36 | M12: 149349.9 | N12: 0.002300216123
A13: 96000293 | B13: MATU2636487 | C13: MATSON | D13: 2022-04-09T17:38:36 | E13: LONG BEACH | F13: 海运 | G13: United States | H13: 64928638 | I13: CNY | J13: 13906.69 | K13: 清关费 | L13: 13906.69 | M13: 149349.9 | N13: 0.002300216123
A14: 96000293 | B14: MATU2636487 | C14: MATSON | D14: 2022-04-09T17:38:36 | E14: LONG BEACH | F14: 海运 | G14: United States | H14: 64928638 | I14: CNY | J14: 4329.85 | K14: 税费 | L14: 4329.85 | M14: 149349.9 | N14: 0.002300216123
A15: 96000310 | B15: 731-94965592 | C15: MF | D15: 2022-04-14T16:29:33 | E15: YVR | F15: 空运 | G15: Canada | H15: 6769018 | I15: CNY | J15: 54028.75 | K15: 空运费 | L15: 54028.75 | M15: 56983.53 | N15: 0.008418286079
A16: 96000310 | B16: 731-94965592 | C16: MF | D16: 2022-04-14T16:29:33 | E16: YVR | F16: 空运 | G16: Canada | H16: 6769018 | I16: CNY | J16: 2629.78 | K16: 清关费 | L16: 2629.78 | M16: 56983.53 | N16: 0.008418286079
A17: 96000310 | B17: 731-94965592 | C17: MF | D17: 2022-04-14T16:29:33 | E17: YVR | F17: 空运 | G17: Canada | H17: 6769018 | I17: CNY | J17: 325 | K17: 交舱费 | L17: 325 | M17: 56983.53 | N17: 0.008418286079
A18: 96000313 | B18: TRHU8428381 | C18: MATSON | D18: 2022-04-15T13:43:43 | E18: LONG BEACH | F18: 海运 | G18: United States | H18: 66368830 | I18: CNY | J18: 131124.88 | K18: 空运费 | L18: 131124.88 | M18: 151427.96 | N18: 0.002281612618
A19: 96000313 | B19: TRHU8428381 | C19: MATSON | D19: 2022-04-15T13:43:43 | E19: LONG BEACH | F19: 海运 | G19: United States | H19: 66368830 | I19: CNY | J19: 14190.19 | K19: 清关费 | L19: 14190.19 | M19: 151427.96 | N19: 0.002281612618
A20: 96000313 | B20: TRHU8428381 | C20: MATSON | D20: 2022-04-15T13:43:43 | E20: LONG BEACH | F20: 海运 | G20: United States | H20: 66368830 | I20: CNY | J20: 6112.89 | K20: 税费 | L20: 6112.89 | M20: 151427.96 | N20: 0.002281612618
A21: 96000318 | B21: 784-64921780 | C21: CZ | D21: 2022-04-16T10:56:09 | E21: SYD | F21: 空运 | G21: Australia | H21: 12946535 | I21: CNY | J21: 63419 | K21: 空运费 | L21: 63419 | M21: 80636.8 | N21: 0.006228446453
A22: 96000318 | B22: 784-64921780 | C22: CZ | D22: 2022-04-16T10:56:09 | E22: SYD | F22: 空运 | G22: Australia | H22: 12946535 | I22: CNY | J22: 16829.4 | K22: 清关费 | L22: 16829.4 | M22: 80636.8 | N22: 0.006228446453
A23: 96000318 | B23: 784-64921780 | C23: CZ | D23: 2022-04-16T10:56:09 | E23: SYD | F23: 空运 | G23: Australia | H23: 12946535 | I23: CNY | J23: 388.4 | K23: 交舱费 | L23: 388.4 | M23: 80636.8 | N23: 0.006228446453
A24: 96000323 | B24: MATU2530828 | C24: MATSON | D24: 2022-04-19T13:27:11 | E24: LONG BEACH | F24: 海运 | G24: United States | H24: 65694270 | I24: CNY | J24: 152009.52 | K24: 空运费 | L24: 152009.52 | M24: 174130.92 | N24: 0.002650625694
A25: 96000323 | B25: MATU2530828 | C25: MATSON | D25: 2022-04-19T13:27:11 | E25: LONG BEACH | F25: 海运 | G25: United States | H25: 65694270 | I25: CNY | J25: 13173.44 | K25: 清关费 | L25: 13173.44 | M25: 174130.92 | N25: 0.002650625694
A26: 96000323 | B26: MATU2530828 | C26: MATSON | D26: 2022-04-19T13:27:11 | E26: LONG BEACH | F26: 海运 | G26: United States | H26: 65694270 | I26: CNY | J26: 8947.96 | K26: 税费 | L26: 8947.96 | M26: 174130.92 | N26: 0.002650625694
A27: 96000328 | B27: CCLU7769093 | C27: COSCO | D27: 2022-04-20T10:49:54 | E27: LONG BEACH | F27: 海运 | G27: United States | H27: 68841231 | I27: CNY | J27: 59996.12 | K27: 空运费 | L27: 59996.12 | M27: 78738.55 | N27: 0.001143770221
A28: 96000328 | B28: CCLU7769093 | C28: COSCO | D28: 2022-04-20T10:49:54 | E28: LONG BEACH | F28: 海运 | G28: United States | H28: 68841231 | I28: CNY | J28: 2653.49 | K28: 税费 | L28: 2653.49 | M28: 78738.55 | N28: 0.001143770221
A29: 96000328 | B29: CCLU7769093 | C29: COSCO | D29: 2022-04-20T10:49:54 | E29: LONG BEACH | F29: 海运 | G29: United States | H29: 68841231 | I29: CNY | J29: 16088.94 | K29: 清关费 | L29: 16088.94 | M29: 78738.55 | N29: 0.001143770221
A30: 96000337 | B30: 784-64652593 | C30: CZ | D30: 2022-04-23T09:10:10 | E30: SYD | F30: 空运 | G30: Australia | H30: 6191792 | I30: CNY | J30: 30915.2 | K30: 空运费 | L30: 30915.2 | M30: 39536.45 | N30: 0.006385300088
A31: 96000337 | B31: 784-64652593 | C31: CZ | D31: 2022-04-23T09:10:10 | E31: SYD | F31: 空运 | G31: Australia | H31: 6191792 | I31: CNY | J31: 8241.25 | K31: 清关费 | L31: 8241.25 | M31: 39536.45 | N31: 0.006385300088
A32: 96000337 | B32: 784-64652593 | C32: CZ | D32: 2022-04-23T09:10:10 | E32: SYD | F32: 空运 | G32: Australia | H32: 6191792 | I32: CNY | J32: 380 | K32: 交舱费 | L32: 380 | M32: 39536.45 | N32: 0.006385300088
A33: 96000338 | B33: MATU2676854 | C33: MATSON | D33: 2022-04-23T09:27:15 | E33: LONG BEACH | F33: 海运 | G33: United States | H33: 63995390 | I33: CNY | J33: 130355.92 | K33: 空运费 | L33: 130355.92 | M33: 148829.97 | N33: 0.0023256358
A34: 96000338 | B34: MATU2676854 | C34: MATSON | D34: 2022-04-23T09:27:15 | E34: LONG BEACH | F34: 海运 | G34: United States | H34: 63995390 | I34: CNY | J34: 13948.69 | K34: 清关费 | L34: 13948.69 | M34: 148829.97 | N34: 0.0023256358
A35: 96000338 | B35: MATU2676854 | C35: MATSON | D35: 2022-04-23T09:27:15 | E35: LONG BEACH | F35: 海运 | G35: United States | H35: 63995390 | I35: CNY | J35: 4525.36 | K35: 税费 | L35: 4525.36 | M35: 148829.97 | N35: 0.0023256358
A36: 96000342 | B36: TCNU5577536 | C36: COSCO | D36: 2022-04-25T09:07:15 | E36: LONG BEACH | F36: 海运 | G36: United States | H36: 66882743 | I36: CNY | J36: 59980.44 | K36: 空运费 | L36: 59980.44 | M36: 78907.88 | N36: 0.001179794316
A37: 96000342 | B37: TCNU5577536 | C37: COSCO | D37: 2022-04-25T09:07:15 | E37: LONG BEACH | F37: 海运 | G37: United States | H37: 66882743 | I37: CNY | J37: 2796.5 | K37: 税费 | L37: 2796.5 | M37: 78907.88 | N37: 0.001179794316
A38: 96000342 | B38: TCNU5577536 | C38: COSCO | D38: 2022-04-25T09:07:15 | E38: LONG BEACH | F38: 海运 | G38: United States | H38: 66882743 | I38: CNY | J38: 16130.94 | K38: 清关费 | L38: 16130.94 | M38: 78907.88 | N38: 0.001179794316
A39: 96000348 | B39: 176-37149291 | C39: EK | D39: 2022-04-25T17:54:37 | E39: LHR | F39: 空运 | G39: United Kingdom | H39: 14595437 | I39: CNY | J39: 82605.72 | K39: 空运费 | L39: 82605.72 | M39: 88568.17 | N39: 0.006068209537
A40: 96000348 | B40: 176-37149291 | C40: EK | D40: 2022-04-25T17:54:37 | E40: LHR | F40: 空运 | G40: United Kingdom | H40: 14595437 | I40: CNY | J40: 5479.65 | K40: 清关费 | L40: 5479.65 | M40: 88568.17 | N40: 0.006068209537
A41: 96000348 | B41: 176-37149291 | C41: EK | D41: 2022-04-25T17:54:37 | E41: LHR | F41: 空运 | G41: United Kingdom | H41: 14595437 | I41: CNY | J41: 482.8 | K41: 交舱费 | L41: 482.8 | M41: 88568.17 | N41: 0.006068209537
A42: 96000349 | B42: 784-33921344 | C42: CZ | D42: 2022-04-26T13:06:26 | E42: LAX | F42: 空运 | G42: United States | H42: 7922426 | I42: CNY | J42: 47488.9 | K42: 空运费 | L42: 47488.9 | M42: 52171.05 | N42: 0.006585236643
A43: 96000349 | B43: 784-33921344 | C43: CZ | D43: 2022-04-26T13:06:26 | E43: LAX | F43: 空运 | G43: United States | H43: 7922426 | I43: CNY | J43: 4280.15 | K43: 清关费 | L43: 4280.15 | M43: 52171.05 | N43: 0.006585236643
A44: 96000349 | B44: 784-33921344 | C44: CZ | D44: 2022-04-26T13:06:26 | E44: LAX | F44: 空运 | G44: United States | H44: 7922426 | I44: CNY | J44: 402 | K44: 拖车费 | L44: 402 | M44: 52171.05 | N44: 0.006585236643
A45: 96000354 | B45: MATU2764370 | C45: MATSON | D45: 2022-04-27T17:58:41 | E45: LONG BEACH | F45: 海运 | G45: United States | H45: 66794006 | I45: CNY | J45: 132304.63 | K45: 空运费 | L45: 132304.63 | M45: 154967.97 | N45: 0.002320087973
A46: 96000354 | B46: MATU2764370 | C46: MATSON | D46: 2022-04-27T17:58:41 | E46: LONG BEACH | F46: 海运 | G46: United States | H46: 66794006 | I46: CNY | J46: 14048.44 | K46: 清关费 | L46: 14048.44 | M46: 154967.97 | N46: 0.002320087973
A47: 96000354 | B47: MATU2764370 | C47: MATSON | D47: 2022-04-27T17:58:41 | E47: LONG BEACH | F47: 海运 | G47: United States | H47: 66794006 | I47: CNY | J47: 8614.9 | K47: 税费 | L47: 8614.9 | M47: 154967.97 | N47: 0.002320087973
A48: 96000355 | B48: 176-37187183 | C48: EK | D48: 2022-04-28T12:28:32 | E48: LHR | F48: 空运 | G48: United Kingdom | H48: 12229898 | I48: CNY | J48: 68159.46 | K48: 空运费 | L48: 68159.46 | M48: 73580.51 | N48: 0.006016445109
A49: 96000355 | B49: 176-37187183 | C49: EK | D49: 2022-04-28T12:28:32 | E49: LHR | F49: 空运 | G49: United Kingdom | H49: 12229898 | I49: CNY | J49: 4540.05 | K49: 清关费 | L49: 4540.05 | M49: 73580.51 | N49: 0.006016445109
A50: 96000355 | B50: 176-37187183 | C50: EK | D50: 2022-04-28T12:28:32 | E50: LHR | F50: 空运 | G50: United Kingdom | H50: 12229898 | I50: CNY | J50: 881 | K50: 交舱费 | L50: 881 | M50: 73580.51 | N50: 0.006016445109
A51: 96000356 | B51: 272-72243415 | C51: K4 | D51: 2022-04-28T13:29:55 | E51: LAX | F51: 空运 | G51: United States | H51: 7077413 | I51: CNY | J51: 46800 | K51: 空运费 | L51: 46800 | M51: 52513 | N51: 0.007419801557
A52: 96000356 | B52: 272-72243415 | C52: K4 | D52: 2022-04-28T13:29:55 | E52: LAX | F52: 空运 | G52: United States | H52: 7077413 | I52: CNY | J52: 5355 | K52: 清关费 | L52: 5355 | M52: 52513 | N52: 0.007419801557
A53: 96000356 | B53: 272-72243415 | C53: K4 | D53: 2022-04-28T13:29:55 | E53: LAX | F53: 空运 | G53: United States | H53: 7077413 | I53: CNY | J53: 358 | K53: 交舱费 | L53: 358 | M53: 52513 | N53: 0.007419801557
A54: 96000358 | B54: 731-95131374 | C54: MF | D54: 2022-04-28T15:06:01 | E54: YVR | F54: 空运 | G54: Canada | H54: 7746262 | I54: CNY | J54: 52725.75 | K54: 空运费 | L54: 52725.75 | M54: 55297.65 | N54: 0.007138623765
A55: 96000358 | B55: 731-95131374 | C55: MF | D55: 2022-04-28T15:06:01 | E55: YVR | F55: 空运 | G55: Canada | H55: 7746262 | I55: CNY | J55: 2271.83 | K55: 清关费 | L55: 2271.83 | M55: 55297.65 | N55: 0.007138623765
A56: 96000358 | B56: 731-95131374 | C56: MF | D56: 2022-04-28T15:06:01 | E56: YVR | F56: 空运 | G56: Canada | H56: 7746262 | I56: CNY | J56: 300.07 | K56: 交舱费 | L56: 300.07 | M56: 55297.65 | N56: 0.007138623765
A57: 96000361 | B57: CSNU8445409 | C57: COSCO | D57: 2022-04-29T14:00:29 | E57: LONG BEACH | F57: 海运 | G57: United States | H57: 66651455 | I57: CNY | J57: 59928.6 | K57: 空运费 | L57: 59928.6 | M57: =SUMIFS(L:L,A:A,A57) -> 78182.92 | N57: =M57/H57 -> 0.001173011452
A58: 96000361 | B58: CSNU8445409 | C58: COSCO | D58: 2022-04-29T14:00:29 | E58: LONG BEACH | F58: 海运 | G58: United States | H58: 66651455 | I58: CNY | J58: 2356.13 | K58: 税费 | L58: 2356.13 | M58: =SUMIFS(L:L,A:A,A58) -> 78182.92 | N58: =M58/H58 -> 0.001173011452
A59: 96000361 | B59: CSNU8445409 | C59: COSCO | D59: 2022-04-29T14:00:29 | E59: LONG BEACH | F59: 海运 | G59: United States | H59: 66651455 | I59: CNY | J59: 15898.19 | K59: 清关费 | L59: 15898.19 | M59: =SUMIFS(L:L,A:A,A59) -> 78182.92 | N59: =M59/H59 -> 0.001173011452
A60: 96000364 | B60: 731-94991260 | C60: MF | D60: 2022-04-29T15:33:53 | E60: LAX | F60: 空运 | G60: United States | H60: 11047098 | I60: CNY | J60: 63836.5 | K60: 空运费 | L60: 63836.5 | M60: =SUMIFS(L:L,A:A,A60) -> 70807.67 | N60: =M60/H60 -> 0.006409617259
A61: 96000364 | B61: 731-94991260 | C61: MF | D61: 2022-04-29T15:33:53 | E61: LAX | F61: 空运 | G61: United States | H61: 11047098 | I61: CNY | J61: 6666.1 | K61: 清关费 | L61: 6666.1 | M61: =SUMIFS(L:L,A:A,A61) -> 70807.67 | N61: =M61/H61 -> 0.006409617259
A62: 96000364 | B62: 731-94991260 | C62: MF | D62: 2022-04-29T15:33:53 | E62: LAX | F62: 空运 | G62: United States | H62: 11047098 | I62: CNY | J62: 305.07 | K62: 交舱费 | L62: 305.07 | M62: =SUMIFS(L:L,A:A,A62) -> 70807.67 | N62: =M62/H62 -> 0.006409617259
A63: 96000365 | B63: 731-94986006 | C63: MF | D63: 2022-04-29T17:32:42 | E63: SYD | F63: 空运 | G63: Australia | H63: 10139937 | I63: CNY | J63: 59344.13 | K63: 空运费 | L63: 59344.13 | M63: =SUMIFS(L:L,A:A,A63) -> 72836.43 | N63: =M63/H63 -> 0.007183124511
A64: 96000365 | B64: 731-94986006 | C64: MF | D64: 2022-04-29T17:32:42 | E64: SYD | F64: 空运 | G64: Australia | H64: 10139937 | I64: CNY | J64: 13139.9 | K64: 清关费 | L64: 13139.9 | M64: =SUMIFS(L:L,A:A,A64) -> 72836.43 | N64: =M64/H64 -> 0.007183124511
A65: 96000365 | B65: 731-94986006 | C65: MF | D65: 2022-04-29T17:32:42 | E65: SYD | F65: 空运 | G65: Australia | H65: 10139937 | I65: CNY | J65: 352.4 | K65: 交舱费 | L65: 352.4 | M65: =SUMIFS(L:L,A:A,A65) -> 72836.43 | N65: =M65/H65 -> 0.007183124511
A66: 96000366 | B66: MATU2656945 | C66: MATSON | D66: 2022-04-30T09:09:36 | E66: LONG BEACH | F66: 海运 | G66: United States | H66: 62740858 | I66: CNY | J66: 127485.92 | K66: 空运费 | L66: 127485.92 | M66: =SUMIFS(L:L,A:A,A66) -> 149605.22 | N66: =M66/H66 -> 0.002384494327
A67: 96000366 | B67: MATU2656945 | C67: MATSON | D67: 2022-04-30T09:09:36 | E67: LONG BEACH | F67: 海运 | G67: United States | H67: 62740858 | I67: CNY | J67: 8921.36 | K67: 税费 | L67: 8921.36 | M67: 149605.22 | N67: 0.002384494327
A68: 96000366 | B68: MATU2656945 | C68: MATSON | D68: 2022-04-30T09:09:36 | E68: LONG BEACH | F68: 海运 | G68: United States | H68: 62740858 | I68: CNY | J68: 13197.94 | K68: 清关费 | L68: 13197.94 | M68: 149605.22 | N68: 0.002384494327
A69: 96000368 | B69: 784-34279453 | C69: CZ | D69: 2022-05-03T10:44:39 | E69: LHR | F69: 空运 | G69: United Kingdom | H69: 9516449 | I69: CNY | J69: 54465.9 | K69: 空运费 | L69: 54465.9 | M69: 61715.33 | N69: 0.006485121709
A70: 96000368 | B70: 784-34279453 | C70: CZ | D70: 2022-05-03T10:44:39 | E70: LHR | F70: 空运 | G70: United Kingdom | H70: 9516449 | I70: CNY | J70: 6838.43 | K70: 清关费 | L70: 6838.43 | M70: 61715.33 | N70: 0.006485121709
A71: 96000368 | B71: 784-34279453 | C71: CZ | D71: 2022-05-03T10:44:39 | E71: LHR | F71: 空运 | G71: United Kingdom | H71: 9516449 | I71: CNY | J71: 411 | K71: 交舱费 | L71: 411 | M71: 61715.33 | N71: 0.006485121709
A72: 96000369 | B72: 999-64632105 | C72: CA | D72: 2022-05-04T10:14:15 | E72: AMS | F72: 空运 | G72: Netherlands | H72: 10119362 | I72: CNY | J72: 50096 | K72: 空运费 | L72: 50096 | M72: 60935.88 | N72: 0.006021711645
A73: 96000369 | B73: 999-64632105 | C73: CA | D73: 2022-05-04T10:14:15 | E73: AMS | F73: 空运 | G73: Netherlands | H73: 10119362 | I73: CNY | J73: 10486.88 | K73: 清关费 | L73: 10486.88 | M73: 60935.88 | N73: 0.006021711645
A74: 96000369 | B74: 999-64632105 | C74: CA | D74: 2022-05-04T10:14:15 | E74: AMS | F74: 空运 | G74: Netherlands | H74: 10119362 | I74: CNY | J74: 353 | K74: 交舱费 | L74: 353 | M74: 60935.88 | N74: 0.006021711645
A75: 96000371 | B75: 272-72243931 | C75: K4 | D75: 2022-05-04T13:40:07 | E75: LAX | F75: 空运 | G75: United States | H75: 7608770 | I75: CNY | J75: 42638.01 | K75: 空运费 | L75: 42638.01 | M75: 48626.18 | N75: 0.006390806924
A76: 96000371 | B76: 272-72243931 | C76: K4 | D76: 2022-05-04T13:40:07 | E76: LAX | F76: 空运 | G76: United States | H76: 7608770 | I76: CNY | J76: 5630.17 | K76: 清关费 | L76: 5630.17 | M76: 48626.18 | N76: 0.006390806924
A77: 96000371 | B77: 272-72243931 | C77: K4 | D77: 2022-05-04T13:40:07 | E77: LAX | F77: 空运 | G77: United States | H77: 7608770 | I77: CNY | J77: 358 | K77: 交舱费 | L77: 358 | M77: 48626.18 | N77: 0.006390806924
A78: 96000374 | B78: 904-10520263 | C78: KD | D78: 2022-05-05T13:59:29 | E78: LAX | F78: 空运 | G78: United States | H78: 6418489 | I78: CNY | J78: 41538.6 | K78: 空运费 | L78: 41538.6 | M78: 48239.48 | N78: 0.007515706578
A79: 96000374 | B79: 904-10520263 | C79: KD | D79: 2022-05-05T13:59:29 | E79: LAX | F79: 空运 | G79: United States | H79: 6418489 | I79: CNY | J79: 5794.88 | K79: 清关费 | L79: 5794.88 | M79: 48239.48 | N79: 0.007515706578
A80: 96000374 | B80: 904-10520263 | C80: KD | D80: 2022-05-05T13:59:29 | E80: LAX | F80: 空运 | G80: United States | H80: 6418489 | I80: CNY | J80: 906 | K80: 交舱费 | L80: 906 | M80: 48239.48 | N80: 0.007515706578
A81: 96000375 | B81: 784-34275286 | C81: CZ | D81: 2022-05-05T14:54:41 | E81: YVR | F81: 空运 | G81: Canada | H81: 6792634 | I81: CNY | J81: 49665.2 | K81: 空运费 | L81: 49665.2 | M81: 52593.63 | N81: 0.007742744567
A82: 96000375 | B82: 784-34275286 | C82: CZ | D82: 2022-05-05T14:54:41 | E82: YVR | F82: 空运 | G82: Canada | H82: 6792634 | I82: CNY | J82: 2512.43 | K82: 清关费 | L82: 2512.43 | M82: 52593.63 | N82: 0.007742744567
A83: 96000375 | B83: 784-34275286 | C83: CZ | D83: 2022-05-05T14:54:41 | E83: YVR | F83: 空运 | G83: Canada | H83: 6792634 | I83: CNY | J83: 416 | K83: 交舱费 | L83: 416 | M83: 52593.63 | N83: 0.007742744567
A84: 96000376 | B84: 157-78635141 | C84: QR | D84: 2022-05-05T16:47:21 | E84: LHR | F84: 空运 | G84: United Kingdom | H84: 11275129 | I84: CNY | J84: 58647.88 | K84: 空运费 | L84: 58647.88 | M84: 68920.83 | N84: 0.006112642259
A85: 96000376 | B85: 157-78635141 | C85: QR | D85: 2022-05-05T16:47:21 | E85: LHR | F85: 空运 | G85: United Kingdom | H85: 11275129 | I85: CNY | J85: 9913.95 | K85: 清关费 | L85: 9913.95 | M85: 68920.83 | N85: 0.006112642259
A86: 96000376 | B86: 157-78635141 | C86: QR | D86: 2022-05-05T16:47:21 | E86: LHR | F86: 空运 | G86: United Kingdom | H86: 11275129 | I86: CNY | J86: 359 | K86: 交舱费 | L86: 359 | M86: 68920.83 | N86: 0.006112642259
A87: 96000377 | B87: TXGU6062374 | C87: MATSON | D87: 2022-05-05T16:48:45 | E87: LONG BEACH | F87: 海运 | G87: United States | H87: 63758514 | I87: CNY | J87: 127907 | K87: 空运费 | L87: 127907 | M87: 149241.04 | N87: 0.002340723311
A88: 96000377 | B88: TXGU6062374 | C88: MATSON | D88: 2022-05-05T16:48:45 | E88: LONG BEACH | F88: 海运 | G88: United States | H88: 63758514 | I88: CNY | J88: 8869.35 | K88: 税费 | L88: 8869.35 | M88: 149241.04 | N88: 0.002340723311
A89: 96000377 | B89: TXGU6062374 | C89: MATSON | D89: 2022-05-05T16:48:45 | E89: LONG BEACH | F89: 海运 | G89: United States | H89: 63758514 | I89: CNY | J89: 12464.69 | K89: 清关费 | L89: 12464.69 | M89: 149241.04 | N89: 0.002340723311
A90: 96000378 | B90: 176-37184206 | C90: EK | D90: 2022-05-05T17:23:21 | E90: AMS | F90: 空运 | G90: Netherlands | H90: 10966558 | I90: CNY | J90: 54814.38 | K90: 空运费 | L90: 54814.38 | M90: 60664.38 | N90: 0.005531761196
A91: 96000378 | B91: 176-37184206 | C91: EK | D91: 2022-05-05T17:23:21 | E91: AMS | F91: 空运 | G91: Netherlands | H91: 10966558 | I91: CNY | J91: 5491 | K91: 清关费 | L91: 5491 | M91: 60664.38 | N91: 0.005531761196
A92: 96000378 | B92: 176-37184206 | C92: EK | D92: 2022-05-05T17:23:21 | E92: AMS | F92: 空运 | G92: Netherlands | H92: 10966558 | I92: CNY | J92: 359 | K92: 交舱费 | L92: 359 | M92: 60664.38 | N92: 0.005531761196
A93: 96000381 | B93: 176-37184210 | C93: EK | D93: 2022-05-07T13:06:06 | E93: AMS | F93: 空运 | G93: Netherlands | H93: 9566213 | I93: CNY | J93: 44693 | K93: 空运费 | L93: 44693 | M93: 49063.52 | N93: 0.005128834158
A94: 96000381 | B94: 176-37184210 | C94: EK | D94: 2022-05-07T13:06:06 | E94: AMS | F94: 空运 | G94: Netherlands | H94: 9566213 | I94: CNY | J94: 4006.52 | K94: 清关费 | L94: 4006.52 | M94: 49063.52 | N94: 0.005128834158
A95: 96000381 | B95: 176-37184210 | C95: EK | D95: 2022-05-07T13:06:06 | E95: AMS | F95: 空运 | G95: Netherlands | H95: 9566213 | I95: CNY | J95: 364 | K95: 交舱费 | L95: 364 | M95: 49063.52 | N95: 0.005128834158
A96: 96000382 | B96: 176-37184232 | C96: EK | D96: 2022-05-07T14:20:13 | E96: LHR | F96: 空运 | G96: United Kingdom | H96: 11145447 | I96: CNY | J96: 60868.5 | K96: 空运费 | L96: 60868.5 | M96: 69260.7 | N96: 0.006214259509
A97: 96000382 | B97: 176-37184232 | C97: EK | D97: 2022-05-07T14:20:13 | E97: LHR | F97: 空运 | G97: United Kingdom | H97: 11145447 | I97: CNY | J97: 8026.2 | K97: 清关费 | L97: 8026.2 | M97: 69260.7 | N97: 0.006214259509
A98: 96000382 | B98: 176-37184232 | C98: EK | D98: 2022-05-07T14:20:13 | E98: LHR | F98: 空运 | G98: United Kingdom | H98: 11145447 | I98: CNY | J98: 366 | K98: 交舱费 | L98: 366 | M98: 69260.7 | N98: 0.006214259509
A99: 96000384 | B99: 112-63891122 | C99: MU | D99: 2022-05-09T10:10:35 | E99: LAX | F99: 空运 | G99: United States | H99: 13710689 | I99: CNY | J99: 76030 | K99: 空运费 | L99: 76030 | M99: 86882.16 | N99: 0.006336819397
A100: 96000384 | B100: 112-63891122 | C100: MU | D100: 2022-05-09T10:10:35 | E100: LAX | F100: 空运 | G100: United States | H100: 13710689 | I100: CNY | J100: 10555.16 | K100: 清关费 | L100: 10555.16 | M100: 86882.16 | N100: 0.006336819397
A101: 96000384 | B101: 112-63891122 | C101: MU | D101: 2022-05-09T10:10:35 | E101: LAX | F101: 空运 | G101: United States | H101: 13710689 | I101: CNY | J101: 297 | K101: 交舱费 | L101: 297 | M101: 86882.16 | N101: 0.006336819397
A102: 96000385 | B102: 731-94976420 | C102: MF | D102: 2022-05-09T13:12:59 | E102: SYD | F102: 空运 | G102: Australia | H102: 15695108 | I102: CNY | J102: 83544.5 | K102: 空运费 | L102: 83544.5 | M102: 104382 | N102: 0.00665060731
A103: 96000385 | B103: 731-94976420 | C103: MF | D103: 2022-05-09T13:12:59 | E103: SYD | F103: 空运 | G103: Australia | H103: 15695108 | I103: CNY | J103: 20389.75 | K103: 清关费 | L103: 20389.75 | M103: 104382 | N103: 0.00665060731
A104: 96000385 | B104: 731-94976420 | C104: MF | D104: 2022-05-09T13:12:59 | E104: SYD | F104: 空运 | G104: Australia | H104: 15695108 | I104: CNY | J104: 447.75 | K104: 交舱费 | L104: 447.75 | M104: 104382 | N104: 0.00665060731
A105: 96000387 | B105: FFAU2702251 | C105: COSCO | D105: 2022-05-10T13:19:03 | E105: LONG BEACH | F105: 海运 | G105: United States | H105: 70447152 | I105: CNY | J105: 60924.92 | K105: 空运费 | L105: 60924.92 | M105: 80245.76 | N105: 0.001139091613
A106: 96000387 | B106: FFAU2702251 | C106: COSCO | D106: 2022-05-10T13:19:03 | E106: LONG BEACH | F106: 海运 | G106: United States | H106: 70447152 | I106: CNY | J106: 16640.19 | K106: 清关费 | L106: 16640.19 | M106: 80245.76 | N106: 0.001139091613
A107: 96000387 | B107: FFAU2702251 | C107: COSCO | D107: 2022-05-10T13:19:03 | E107: LONG BEACH | F107: 海运 | G107: United States | H107: 70447152 | I107: CNY | J107: 2680.65 | K107: 税费 | L107: 2680.65 | M107: 80245.76 | N107: 0.001139091613
A108: 96000391 | B108: 176-37245585 | C108: EK | D108: 2022-05-10T15:17:53 | E108: AMS | F108: 空运 | G108: Netherlands | H108: 10229405 | I108: CNY | J108: 50424.11 | K108: 空运费 | L108: 50424.11 | M108: 55809.91 | N108: 0.005455831498
A109: 96000391 | B109: 176-37245585 | C109: EK | D109: 2022-05-10T15:17:53 | E109: AMS | F109: 空运 | G109: Netherlands | H109: 10229405 | I109: CNY | J109: 5030.8 | K109: 清关费 | L109: 5030.8 | M109: 55809.91 | N109: 0.005455831498
A110: 96000391 | B110: 176-37245585 | C110: EK | D110: 2022-05-10T15:17:53 | E110: AMS | F110: 空运 | G110: Netherlands | H110: 10229405 | I110: CNY | J110: 355 | K110: 交舱费 | L110: 355 | M110: 55809.91 | N110: 0.005455831498
A111: 96000392 | B111: MATU2754290 | C111: MATSON | D111: 2022-05-10T15:56:36 | E111: LONG BEACH | F111: 海运 | G111: United States | H111: 64971953 | I111: CNY | J111: 162487.76 | K111: 空运费 | L111: 162487.76 | M111: 185706.9 | N111: 0.002858262549
A112: 96000392 | B112: MATU2754290 | C112: MATSON | D112: 2022-05-10T15:56:36 | E112: LONG BEACH | F112: 海运 | G112: United States | H112: 64971953 | I112: CNY | J112: 10754.45 | K112: 税费 | L112: 10754.45 | M112: 185706.9 | N112: 0.002858262549
A113: 96000392 | B113: MATU2754290 | C113: MATSON | D113: 2022-05-10T15:56:36 | E113: LONG BEACH | F113: 海运 | G113: United States | H113: 64971953 | I113: CNY | J113: 12464.69 | K113: 清关费 | L113: 12464.69 | M113: 185706.9 | N113: 0.002858262549
A114: 96000393 | B114: 921-42433193 | C114: O3 | D114: 2022-05-10T16:21:16 | E114: LAX | F114: 空运 | G114: United States | H114: 5466835 | I114: CNY | J114: 30978 | K114: 空运费 | L114: 30978 | M114: 35753.8 | N114: 0.00654012788
A115: 96000393 | B115: 921-42433193 | C115: O3 | D115: 2022-05-10T16:21:16 | E115: LAX | F115: 空运 | G115: United States | H115: 5466835 | I115: CNY | J115: 4003.3 | K115: 清关费 | L115: 4003.3 | M115: 35753.8 | N115: 0.00654012788
A116: 96000393 | B116: 921-42433193 | C116: O3 | D116: 2022-05-10T16:21:16 | E116: LAX | F116: 空运 | G116: United States | H116: 5466835 | I116: CNY | J116: 772.5 | K116: 交舱费 | L116: 772.5 | M116: 35753.8 | N116: 0.00654012788
A117: 96000394 | B117: 176-39660585 | C117: EK | D117: 2022-05-10T17:23:00 | E117: LHR | F117: 空运 | G117: United Kingdom | H117: 13206028 | I117: CNY | J117: 65420.25 | K117: 空运费 | L117: 65420.25 | M117: 77280.75 | N117: 0.005851929891
A118: 96000394 | B118: 176-39660585 | C118: EK | D118: 2022-05-10T17:23:00 | E118: LHR | F118: 空运 | G118: United Kingdom | H118: 13206028 | I118: CNY | J118: 11483.1 | K118: 清关费 | L118: 11483.1 | M118: 77280.75 | N118: 0.005851929891
A119: 96000394 | B119: 176-39660585 | C119: EK | D119: 2022-05-10T17:23:00 | E119: LHR | F119: 空运 | G119: United Kingdom | H119: 13206028 | I119: CNY | J119: 377.4 | K119: 交舱费 | L119: 377.4 | M119: 77280.75 | N119: 0.005851929891
A120: 96000396 | B120: 731-95120723 | C120: MF | D120: 2022-05-12T09:48:54 | E120: YVR | F120: 空运 | G120: Canada | H120: 4703187 | I120: CNY | J120: 32458.5 | K120: 空运费 | L120: 32458.5 | M120: 34382.76 | N120: 0.007310523694
A121: 96000396 | B121: 731-95120723 | C121: MF | D121: 2022-05-12T09:48:54 | E121: YVR | F121: 空运 | G121: Canada | H121: 4703187 | I121: CNY | J121: 1729.15 | K121: 清关费 | L121: 1729.15 | M121: 34382.76 | N121: 0.007310523694
A122: 96000396 | B122: 731-95120723 | C122: MF | D122: 2022-05-12T09:48:54 | E122: YVR | F122: 空运 | G122: Canada | H122: 4703187 | I122: CNY | J122: 195.11 | K122: 交舱费 | L122: 195.11 | M122: 34382.76 | N122: 0.007310523694
A123: 96000399 | B123: MAGU5635816 | C123: MATSON | D123: 2022-05-13T10:00:52 | E123: LONG BEACH | F123: 海运 | G123: United States | H123: 64358938 | I123: CNY | J123: 127482.8 | K123: 空运费 | L123: 127482.8 | M123: 148035.22 | N123: 0.002300150136
A124: 96000399 | B124: MAGU5635816 | C124: MATSON | D124: 2022-05-13T10:00:52 | E124: LONG BEACH | F124: 海运 | G124: United States | H124: 64358938 | I124: CNY | J124: 7378.98 | K124: 税费 | L124: 7378.98 | M124: 148035.22 | N124: 0.002300150136
A125: 96000399 | B125: MAGU5635816 | C125: MATSON | D125: 2022-05-13T10:00:52 | E125: LONG BEACH | F125: 海运 | G125: United States | H125: 64358938 | I125: CNY | J125: 13173.44 | K125: 清关费 | L125: 13173.44 | M125: 148035.22 | N125: 0.002300150136
A126: 96000400 | B126: 176-39660596 | C126: EK | D126: 2022-05-13T11:09:27 | E126: LHR | F126: 空运 | G126: United Kingdom | H126: 10624511 | I126: CNY | J126: 57120 | K126: 空运费 | L126: 57120 | M126: 65207.1 | N126: 0.006137421289
A127: 96000400 | B127: 176-39660596 | C127: EK | D127: 2022-05-13T11:09:27 | E127: LHR | F127: 空运 | G127: United Kingdom | H127: 10624511 | I127: CNY | J127: 7686 | K127: 清关费 | L127: 7686 | M127: 65207.1 | N127: 0.006137421289
A128: 96000400 | B128: 176-39660596 | C128: EK | D128: 2022-05-13T11:09:27 | E128: LHR | F128: 空运 | G128: United Kingdom | H128: 10624511 | I128: CNY | J128: 401.1 | K128: 交舱费 | L128: 401.1 | M128: 65207.1 | N128: 0.006137421289
A129: 96000401 | B129: 176-39660611 | C129: EK | D129: 2022-05-13T11:18:29 | E129: AMS | F129: 空运 | G129: Netherlands | H129: 10789387 | I129: CNY | J129: 49667.63 | K129: 空运费 | L129: 49667.63 | M129: 54976.15 | N129: 0.005095391425
A130: 96000401 | B130: 176-39660611 | C130: EK | D130: 2022-05-13T11:18:29 | E130: AMS | F130: 空运 | G130: Netherlands | H130: 10789387 | I130: CNY | J130: 4949.52 | K130: 清关费 | L130: 4949.52 | M130: =SUMIFS(L:L,A:A,A130) -> 54976.15 | N130: =M130/H130 -> 0.005095391425
A131: 96000401 | B131: 176-39660611 | C131: EK | D131: 2022-05-13T11:18:29 | E131: AMS | F131: 空运 | G131: Netherlands | H131: 10789387 | I131: CNY | J131: 359 | K131: 交舱费 | L131: 359 | M131: 54976.15 | N131: 0.005095391425
A132: 96000404 | B132: 179-90797825 | C132: KD | D132: 2022-05-13T14:14:06 | E132: LAX | F132: 空运 | G132: United States | H132: 10994369 | I132: CNY | J132: 57232.63 | K132: 空运费 | L132: 57232.63 | M132: 63442.47 | N132: 0.005770451219
A133: 96000404 | B133: 179-90797825 | C133: KD | D133: 2022-05-13T14:14:06 | E133: LAX | F133: 空运 | G133: United States | H133: 10994369 | I133: CNY | J133: 5852.84 | K133: 清关费 | L133: 5852.84 | M133: 63442.47 | N133: 0.005770451219
A134: 96000404 | B134: 179-90797825 | C134: KD | D134: 2022-05-13T14:14:06 | E134: LAX | F134: 空运 | G134: United States | H134: 10994369 | I134: CNY | J134: 357 | K134: 交舱费 | L134: 357 | M134: 63442.47 | N134: 0.005770451219
A135: 96000405 | B135: 731-95128305 | C135: MF | D135: 2022-05-14T10:44:10 | E135: YVR | F135: 空运 | G135: Canada | H135: 5518320 | I135: CNY | J135: 36806 | K135: 空运费 | L135: 36806 | M135: 39214 | N135: 0.007106148248
A136: 96000405 | B136: 731-95128305 | C136: MF | D136: 2022-05-14T10:44:10 | E136: YVR | F136: 空运 | G136: Canada | H136: 5518320 | I136: CNY | J136: 2210 | K136: 清关费 | L136: 2210 | M136: 39214 | N136: 0.007106148248
A137: 96000405 | B137: 731-95128305 | C137: MF | D137: 2022-05-14T10:44:10 | E137: YVR | F137: 空运 | G137: Canada | H137: 5518320 | I137: CNY | J137: 198 | K137: 交舱费 | L137: 198 | M137: 39214 | N137: 0.007106148248
A138: 96000406 | B138: 880-36910322 | C138: HU | D138: 2022-05-14T14:36:18 | E138: SYD | F138: 空运 | G138: Australia | H138: 10877640 | I138: CNY | J138: 54110 | K138: 空运费 | L138: 54110 | M138: 69051.75 | N138: 0.006348045164
A139: 96000406 | B139: 880-36910322 | C139: HU | D139: 2022-05-14T14:36:18 | E139: SYD | F139: 空运 | G139: Australia | H139: 10877640 | I139: CNY | J139: 14539.75 | K139: 清关费 | L139: 14539.75 | M139: 69051.75 | N139: 0.006348045164
A140: 96000406 | B140: 880-36910322 | C140: HU | D140: 2022-05-14T14:36:18 | E140: SYD | F140: 空运 | G140: Australia | H140: 10877640 | I140: CNY | J140: 402 | K140: 交舱费 | L140: 402 | M140: 69051.75 | N140: 0.006348045164
A141: 96000408 | B141: OOLU9657380 | C141: COSCO | D141: 2022-05-14T16:57:44 | E141: LONG BEACH | F141: 海运 | G141: United States | H141: 72625975 | I141: CNY | J141: 60276.36 | K141: 空运费 | L141: 60276.36 | M141: 80290.13 | N141: 0.001105529117
A142: 96000408 | B142: OOLU9657380 | C142: COSCO | D142: 2022-05-14T16:57:44 | E142: LONG BEACH | F142: 海运 | G142: United States | H142: 72625975 | I142: CNY | J142: 17180.94 | K142: 清关费 | L142: 17180.94 | M142: 80290.13 | N142: 0.001105529117
A143: 96000408 | B143: OOLU9657380 | C143: COSCO | D143: 2022-05-14T16:57:44 | E143: LONG BEACH | F143: 海运 | G143: United States | H143: 72625975 | I143: CNY | J143: 2832.83 | K143: 税费 | L143: 2832.83 | M143: 80290.13 | N143: 0.001105529117
A144: 96000414 | B144: 157-78635152 | C144: EK | D144: 2022-05-14T18:23:45 | E144: LHR | F144: 空运 | G144: United Kingdom | H144: 8625420 | I144: CNY | J144: 42349.13 | K144: 空运费 | L144: 42349.13 | M144: 49580.91 | N144: 0.00574823139
A145: 96000414 | B145: 157-78635152 | C145: EK | D145: 2022-05-14T18:23:45 | E145: LHR | F145: 空运 | G145: United Kingdom | H145: 8625420 | I145: CNY | J145: 6849.68 | K145: 清关费 | L145: 6849.68 | M145: 49580.91 | N145: 0.00574823139
A146: 96000414 | B146: 157-78635152 | C146: EK | D146: 2022-05-14T18:23:45 | E146: LHR | F146: 空运 | G146: United Kingdom | H146: 8625420 | I146: CNY | J146: 382.1 | K146: 交舱费 | L146: 382.1 | M146: 49580.91 | N146: 0.00574823139
A147: 96000417 | B147: 179-90797814 | C147: KD | D147: 2022-05-16T13:11:00 | E147: LAX | F147: 空运 | G147: United States | H147: 11470711 | I147: CNY | J147: 58868.88 | K147: 空运费 | L147: 58868.88 | M147: 63934.99 | N147: 0.005573759988
A148: 96000417 | B148: 179-90797814 | C148: KD | D148: 2022-05-16T13:11:00 | E148: LAX | F148: 空运 | G148: United States | H148: 11470711 | I148: CNY | J148: 4709.11 | K148: 清关费 | L148: 4709.11 | M148: 63934.99 | N148: 0.005573759988
A149: 96000417 | B149: 179-90797814 | C149: KD | D149: 2022-05-16T13:11:00 | E149: LAX | F149: 空运 | G149: United States | H149: 11470711 | I149: CNY | J149: 357 | K149: 交舱费 | L149: 357 | M149: 63934.99 | N149: 0.005573759988
A150: 96000420 | B150: 176-39660622 | C150: EK | D150: 2022-05-16T17:14:20 | E150: AMS | F150: 空运 | G150: Netherlands | H150: 10818230 | I150: CNY | J150: 50158.5 | K150: 空运费 | L150: 50158.5 | M150: 55634.7 | N150: 0.005142680457
A151: 96000420 | B151: 176-39660622 | C151: EK | D151: 2022-05-16T17:14:20 | E151: AMS | F151: 空运 | G151: Netherlands | H151: 10818230 | I151: CNY | J151: 5104.6 | K151: 清关费 | L151: 5104.6 | M151: 55634.7 | N151: 0.005142680457
A152: 96000420 | B152: 176-39660622 | C152: EK | D152: 2022-05-16T17:14:20 | E152: AMS | F152: 空运 | G152: Netherlands | H152: 10818230 | I152: CNY | J152: 371.6 | K152: 交舱费 | L152: 371.6 | M152: 55634.7 | N152: 0.005142680457
A153: 96000421 | B153: 731-95170143 | C153: MF | D153: 2022-05-16T17:42:32 | E153: SYD | F153: 空运 | G153: Australia | H153: 5284443 | I153: CNY | J153: 27268.25 | K153: 空运费 | L153: 27268.25 | M153: 34207.41 | N153: 0.006473229061
A154: 96000421 | B154: 731-95170143 | C154: MF | D154: 2022-05-16T17:42:32 | E154: SYD | F154: 空运 | G154: Australia | H154: 5284443 | I154: CNY | J154: 6752.9 | K154: 清关费 | L154: 6752.9 | M154: 34207.41 | N154: 0.006473229061
A155: 96000421 | B155: 731-95170143 | C155: MF | D155: 2022-05-16T17:42:32 | E155: SYD | F155: 空运 | G155: Australia | H155: 5284443 | I155: CNY | J155: 186.26 | K155: 交舱费 | L155: 186.26 | M155: 34207.41 | N155: 0.006473229061
A156: 96000428 | B156: 227-50979176 | C156: F5 | D156: 2022-05-17T16:24:17 | E156: LHR | F156: 空运 | G156: United Kingdom | H156: 16172768 | I156: CNY | J156: 81061.5 | K156: 空运费 | L156: 81061.5 | M156: 94683.4 | N156: 0.005854495656
A157: 96000428 | B157: 227-50979176 | C157: F5 | D157: 2022-05-17T16:24:17 | E157: LHR | F157: 空运 | G157: United Kingdom | H157: 16172768 | I157: CNY | J157: 12363.75 | K157: 清关费 | L157: 12363.75 | M157: 94683.4 | N157: 0.005854495656
A158: 96000428 | B158: 227-50979176 | C158: F5 | D158: 2022-05-17T16:24:17 | E158: LHR | F158: 空运 | G158: United Kingdom | H158: 16172768 | I158: CNY | J158: 1258.15 | K158: 交舱费 | L158: 1258.15 | M158: 94683.4 | N158: 0.005854495656
A159: 96000432 | B159: MATU2549736 | C159: MATSON | D159: 2022-05-17T17:26:25 | E159: LONG BEACH | F159: 海运 | G159: United States | H159: 65426522 | I159: CNY | J159: 130991.36 | K159: 空运费 | L159: 130991.36 | M159: 155158.58 | N159: 0.002371493628
A160: 96000432 | B160: MATU2549736 | C160: MATSON | D160: 2022-05-17T17:26:25 | E160: LONG BEACH | F160: 海运 | G160: United States | H160: 65426522 | I160: CNY | J160: 9268.28 | K160: 税费 | L160: 9268.28 | M160: 155158.58 | N160: 0.002371493628
A161: 96000432 | B161: MATU2549736 | C161: MATSON | D161: 2022-05-17T17:26:25 | E161: LONG BEACH | F161: 海运 | G161: United States | H161: 65426522 | I161: CNY | J161: 14898.94 | K161: 清关费 | L161: 14898.94 | M161: 155158.58 | N161: 0.002371493628
A162: 96000434 | B162: 176-31861896 | C162: EK | D162: 2022-05-18T17:56:47 | E162: AMS | F162: 空运 | G162: Netherlands | H162: 10904777 | I162: CNY | J162: 43865.1 | K162: 空运费 | L162: 43865.1 | M162: 48957.14 | N162: 0.004489513174
A163: 96000434 | B163: 176-31861896 | C163: EK | D163: 2022-05-18T17:56:47 | E163: AMS | F163: 空运 | G163: Netherlands | H163: 10904777 | I163: CNY | J163: 4726.04 | K163: 清关费 | L163: 4726.04 | M163: 48957.14 | N163: 0.004489513174
A164: 96000434 | B164: 176-31861896 | C164: EK | D164: 2022-05-18T17:56:47 | E164: AMS | F164: 空运 | G164: Netherlands | H164: 10904777 | I164: CNY | J164: 366 | K164: 交舱费 | L164: 366 | M164: 48957.14 | N164: 0.004489513174
A165: 96000435 | B165: 904-10520344 | C165: KD | D165: 2022-05-19T14:27:12 | E165: LAX | F165: 空运 | G165: United States | H165: 6296516 | I165: CNY | J165: 42560 | K165: 空运费 | L165: 42560 | M165: 48983.8 | N165: 0.007779508541
A166: 96000435 | B166: 904-10520344 | C166: KD | D166: 2022-05-19T14:27:12 | E166: LAX | F166: 空运 | G166: United States | H166: 6296516 | I166: CNY | J166: 6148.8 | K166: 清关费 | L166: 6148.8 | M166: 48983.8 | N166: 0.007779508541
A167: 96000435 | B167: 904-10520344 | C167: KD | D167: 2022-05-19T14:27:12 | E167: LAX | F167: 空运 | G167: United States | H167: 6296516 | I167: CNY | J167: 275 | K167: 交舱费 | L167: 275 | M167: 48983.8 | N167: 0.007779508541
A168: 96000438 | B168: 880-36910436 | C168: HU | D168: 2022-05-19T15:15:25 | E168: SYD | F168: 空运 | G168: Australia | H168: 4341171 | I168: CNY | J168: 21110 | K168: 空运费 | L168: 21110 | M168: 26967.25 | N168: 0.006211975985
A169: 96000438 | B169: 880-36910436 | C169: HU | D169: 2022-05-19T15:15:25 | E169: SYD | F169: 空运 | G169: Australia | H169: 4341171 | I169: CNY | J169: 5559.25 | K169: 清关费 | L169: 5559.25 | M169: 26967.25 | N169: 0.006211975985
A170: 96000438 | B170: 880-36910436 | C170: HU | D170: 2022-05-19T15:15:25 | E170: SYD | F170: 空运 | G170: Australia | H170: 4341171 | I170: CNY | J170: 298 | K170: 交舱费 | L170: 298 | M170: 26967.25 | N170: 0.006211975985
A171: 96000439 | B171: 880-36910425 | C171: HU | D171: 2022-05-19T16:08:10 | E171: AU | F171: 空运 | G171: Australia | H171: 2354354 | I171: CNY | J171: 12110 | K171: 空运费 | L171: 12110 | M171: 16037.5 | N171: 0.006811847326
A172: 96000439 | B172: 880-36910425 | C172: HU | D172: 2022-05-19T16:08:10 | E172: AU | F172: 空运 | G172: Australia | H172: 2354354 | I172: CNY | J172: 3624.5 | K172: 清关费 | L172: 3624.5 | M172: 16037.5 | N172: 0.006811847326
A173: 96000439 | B173: 880-36910425 | C173: HU | D173: 2022-05-19T16:08:10 | E173: AU | F173: 空运 | G173: Australia | H173: 2354354 | I173: CNY | J173: 303 | K173: 交舱费 | L173: 303 | M173: 16037.5 | N173: 0.006811847326
A174: 96000440 | B174: 176-39968563 | C174: EK | D174: 2022-05-19T16:52:56 | E174: LHR | F174: 空运 | G174: United Kingdom | H174: 12236555 | I174: CNY | J174: 55755 | K174: 空运费 | L174: 55755 | M174: 64906.88 | N174: 0.005304342603
A175: 96000440 | B175: 176-39968563 | C175: EK | D175: 2022-05-19T16:52:56 | E175: LHR | F175: 空运 | G175: United Kingdom | H175: 12236555 | I175: CNY | J175: 8786.48 | K175: 清关费 | L175: 8786.48 | M175: 64906.88 | N175: 0.005304342603
A176: 96000440 | B176: 176-39968563 | C176: EK | D176: 2022-05-19T16:52:56 | E176: LHR | F176: 空运 | G176: United Kingdom | H176: 12236555 | I176: CNY | J176: 365.4 | K176: 交舱费 | L176: 365.4 | M176: 64906.88 | N176: 0.005304342603
A177: 96000444 | B177: 731-95130696 | C177: MF | D177: 2022-05-20T15:50:43 | E177: YVR | F177: 空运 | G177: Canada | H177: 6710480 | I177: CNY | J177: 40537.25 | K177: 空运费 | L177: 40537.25 | M177: 43248.18 | N177: 0.006444871306
A178: 96000444 | B178: 731-95130696 | C178: MF | D178: 2022-05-20T15:50:43 | E178: YVR | F178: 空运 | G178: Canada | H178: 6710480 | I178: CNY | J178: 2435.93 | K178: 清关费 | L178: 2435.93 | M178: 43248.18 | N178: 0.006444871306
A179: 96000444 | B179: 731-95130696 | C179: MF | D179: 2022-05-20T15:50:43 | E179: YVR | F179: 空运 | G179: Canada | H179: 6710480 | I179: CNY | J179: 275 | K179: 交舱费 | L179: 275 | M179: 43248.18 | N179: 0.006444871306
A180: 96000445 | B180: TRHU8435842 | C180: MATSON | D180: 2022-05-20T16:05:49 | E180: LONG BEACH | F180: 海运 | G180: United States | H180: 64987552 | I180: CNY | J180: 131956.69 | K180: 空运费 | L180: 131956.69 | M180: 154531.97 | N180: 0.002377870304
A181: 96000445 | B181: TRHU8435842 | C181: MATSON | D181: 2022-05-20T16:05:49 | E181: LONG BEACH | F181: 海运 | G181: United States | H181: 64987552 | I181: CNY | J181: 8526.84 | K181: 税费 | L181: 8526.84 | M181: 154531.97 | N181: 0.002377870304
A182: 96000445 | B182: TRHU8435842 | C182: MATSON | D182: 2022-05-20T16:05:49 | E182: LONG BEACH | F182: 海运 | G182: United States | H182: 64987552 | I182: CNY | J182: 14048.44 | K182: 清关费 | L182: 14048.44 | M182: 154531.97 | N182: 0.002377870304
A183: 96000446 | B183: 179-90797851 | C183: KD | D183: 2022-05-20T16:54:55 | E183: LAX | F183: 空运 | G183: United States | H183: 12437965 | I183: CNY | J183: 54888.11 | K183: 空运费 | L183: 54888.11 | M183: 60009.6 | N183: 0.004824712081
A184: 96000446 | B184: 179-90797851 | C184: KD | D184: 2022-05-20T16:54:55 | E184: LAX | F184: 空运 | G184: United States | H184: 12437965 | I184: CNY | J184: 4774.49 | K184: 清关费 | L184: 4774.49 | M184: 60009.6 | N184: 0.004824712081
A185: 96000446 | B185: 179-90797851 | C185: KD | D185: 2022-05-20T16:54:55 | E185: LAX | F185: 空运 | G185: United States | H185: 12437965 | I185: CNY | J185: 347 | K185: 交舱费 | L185: 347 | M185: 60009.6 | N185: 0.004824712081
A186: 96000447 | B186: 157-78644414 | C186: EK | D186: 2022-05-21T13:19:52 | E186: LHR | F186: 空运 | G186: United Kingdom | H186: 7417553 | I186: CNY | J186: 37168 | K186: 空运费 | L186: 37168 | M186: 40236.4 | N186: 0.005424484328
A187: 96000447 | B187: 157-78644414 | C187: EK | D187: 2022-05-21T13:19:52 | E187: LHR | F187: 空运 | G187: United Kingdom | H187: 7417553 | I187: CNY | J187: 2705.4 | K187: 清关费 | L187: 2705.4 | M187: 40236.4 | N187: 0.005424484328
A188: 96000447 | B188: 157-78644414 | C188: EK | D188: 2022-05-21T13:19:52 | E188: LHR | F188: 空运 | G188: United Kingdom | H188: 7417553 | I188: CNY | J188: 363 | K188: 交舱费 | L188: 363 | M188: 40236.4 | N188: 0.005424484328
A189: 96000448 | B189: 157-78644440 | C189: EK | D189: 2022-05-21T13:30:27 | E189: AMS | F189: 空运 | G189: Netherlands | H189: 8572708 | I189: CNY | J189: 42086 | K189: 空运费 | L189: 42086 | M189: 46910.92 | N189: 0.005472123861
A190: 96000448 | B190: 157-78644440 | C190: EK | D190: 2022-05-21T13:30:27 | E190: AMS | F190: 空运 | G190: Netherlands | H190: 8572708 | I190: CNY | J190: 4448.52 | K190: 清关费 | L190: 4448.52 | M190: 46910.92 | N190: 0.005472123861
A191: 96000448 | B191: 157-78644440 | C191: EK | D191: 2022-05-21T13:30:27 | E191: AMS | F191: 空运 | G191: Netherlands | H191: 8572708 | I191: CNY | J191: 376.4 | K191: 交舱费 | L191: 376.4 | M191: 46910.92 | N191: 0.005472123861
A192: 96000452 | B192: 731-95170165 | C192: MF | D192: 2022-05-23T11:03:55 | E192: SYD | F192: 空运 | G192: Australia | H192: 9597102 | I192: CNY | J192: 51532.75 | K192: 空运费 | L192: 51532.75 | M192: 65162.5 | N192: 0.006789810091
A193: 96000452 | B193: 731-95170165 | C193: MF | D193: 2022-05-23T11:03:55 | E193: SYD | F193: 空运 | G193: Australia | H193: 9597102 | I193: CNY | J193: 13297.35 | K193: 清关费 | L193: 13297.35 | M193: 65162.5 | N193: 0.006789810091
A194: 96000452 | B194: 731-95170165 | C194: MF | D194: 2022-05-23T11:03:55 | E194: SYD | F194: 空运 | G194: Australia | H194: 9597102 | I194: CNY | J194: 332.4 | K194: 交舱费 | L194: 332.4 | M194: =SUMIFS(L:L,A:A,A194) -> 65162.5 | N194: =M194/H194 -> 0.006789810091
A195: 96000454 | B195: 272-72504305 | C195: K4 | D195: 2022-05-23T14:42:17 | E195: LAX | F195: 空运 | G195: United States | H195: 9302734 | I195: CNY | J195: 53080 | K195: 空运费 | L195: 53080 | M195: 59848.29 | N195: 0.006433408716
A196: 96000454 | B196: 272-72504305 | C196: K4 | D196: 2022-05-23T14:42:17 | E196: LAX | F196: 空运 | G196: United States | H196: 9302734 | I196: CNY | J196: 6415.29 | K196: 清关费 | L196: 6415.29 | M196: 59848.29 | N196: 0.006433408716
A197: 96000454 | B197: 272-72504305 | C197: K4 | D197: 2022-05-23T14:42:17 | E197: LAX | F197: 空运 | G197: United States | H197: 9302734 | I197: CNY | J197: 353 | K197: 交舱费 | L197: 353 | M197: 59848.29 | N197: 0.006433408716
A198: 96000455 | B198: CSNU8359975 | C198: COSCO | D198: 2022-05-23T15:43:55 | E198: LONG BEACH | F198: 海运 | G198: United States | H198: 66506093 | I198: CNY | J198: 59677.4 | K198: 空运费 | L198: 59677.4 | M198: 78174.97 | N198: 0.001175455759
A199: 96000455 | B199: CSNU8359975 | C199: COSCO | D199: 2022-05-23T15:43:55 | E199: LONG BEACH | F199: 海运 | G199: United States | H199: 66506093 | I199: CNY | J199: 2550.38 | K199: 税费 | L199: 2550.38 | M199: 78174.97 | N199: 0.001175455759
A200: 96000455 | B200: CSNU8359975 | C200: COSCO | D200: 2022-05-23T15:43:55 | E200: LONG BEACH | F200: 海运 | G200: United States | H200: 66506093 | I200: CNY | J200: 15947.19 | K200: 清关费 | L200: 15947.19 | M200: 78174.97 | N200: 0.001175455759
... 4300 more rows
